Workbook

Sheet MSU
B1: Santeri Soininen | E1: 26.11.2002 Kotka
B2: SUPERPESIS | E2: Runkosarja | I2: Kärkilyönnit (KL), pesänvälit | P2: Runkosarja TOP-30 | U2: Ylempi loppusarja | AB2: Ylempi loppusarja TOP-10 | AG2: Play off, voitot, voittoprosentti | AL2: Arvo-ottelut | AO2: Mitalit
B3: Vuosi | C3: Sija | D3: Seura | E3: OTT | F3: KUN | G3: LÖI | H3: TOI | I3: KL | J3: 0 > 1 | K3: 1 > 2 | L3: 2 > 3 | M3: 3 > k | N3: KL-% | P3: LÖI | Q3: TOI | R3: L+T | S3: KL | U3: OTT | V3: KUN | W3: LÖI | X3: TOI | Y3: KL | Z3: KL-% | AB3: LÖI | AC3: TOI | AD3: L+T | AE3: KL | AG3: Puolivälierät | AH3: Välierät | AI3: Pronssi | AJ3: Finaalit | AL3: IL | AM3: LL | AN3: hSM | AO3: K | AP3: H | AQ3: P
B4: 2016 | C4: 2. | D4: KPL 2 | F4: suomensarja
B6: 2018 | C6: 5. | D6: KPL 2 | F6: suomensarja
B7: 2019 | C7: 4. | D7: KPL 2 | F7: suomensarja
B8: 2020 | C8: 3. | D8: KPL 2 | F8: suomensarja
B9: 2020 | C9: 2. | D9: KPL | E9: 1 | F9: 0 | G9: 0 | H9: 0 | I9: 2 | J9: 2 | K9: 0 | L9: 0 | M9: 0 | N9: 40.0 % | O9: 5 | AP9: 1
B10: 2021 | C10: 1. | D10: KPL 2 | F10: suomensarja
B11: 2022 | C11: 6. | D11: LMV | F11: suomensarja
B12: 2022 | C12: 5. | D12: KPL 2 | F12: ykköspesis | O12: 5 | AP12: 1
B13: Yhteensä | E13: =SUM(E4:E12) -> 1 | F13: 0 | G13: 0 | H13: 0 | I13: 2 | J13: 2 | K13: 0 | L13: 0 | M13: 0 | N13: =PRODUCT(I13/O13) -> 20.0 % | O13: =SUM(O6:O12) -> 10 | P13: 0-0-0 | Q13: 0-0-0 | R13: 0-0-0 | S13: 0-0-0 | U13: =SUM(U4:U12) -> 0 | V13: =SUM(V4:V12) -> 0 | W13: =SUM(W4:W12) -> 0 | X13: =SUM(X4:X12) -> 0 | Y13: =SUM(Y4:Y12) -> 0 | Z13: =PRODUCT(N19) -> 0.0 % | AA13: =SUM(AA4:AA12) -> 0.0 % | AB13: 0-0-0 | AC13: 0-0-0 | AD13: 0-0-0 | AE13: 0-0-0 | AG13: 0/0 | AH13: 0/0 | AI13: 0/0 | AJ13: 0/0 | AL13: =SUM(AL4:AL12) -> 0 | AM13: 0 | AN13: 0 | AO13: 0 | AP13: 2 | AQ13: 0
AG14: 0.0 % | AH14: 0.0 % | AI14: 0.0 % | AJ14: 0.0 %
B15: Pesispörssi | D15: =SUM(F13:H13)+((I13-F13-G13)/3)+(E13/3)+(AL13*25)+(AM13*25)+(AN13*10)+(AO13*25)+(AP13*20)+(AQ13*15)-20 -> 21.0
B17: URA SUPERISSA | E17: OTT | F17: KUN | G17: LÖI | H17: TOI | I17: KL | K17: ka/L | L17: ka/T | M17: ka/KL | N17: KL-% | P17: ENSIMMÄISET RUNKOSARJASSA
B18: Runkosarja | E18: =PRODUCT(E13) -> 1 | F18: =PRODUCT(F13) -> 0 | G18: =PRODUCT(G13) -> 0 | H18: =PRODUCT(H13) -> 0 | I18: =PRODUCT(I13) -> 2 | K18: =PRODUCT((F18+G18)/E18) -> 0.00 | L18: =PRODUCT(H18/E18) -> 0.00 | M18: =PRODUCT(I18/E18) -> 2.00 | N18: =PRODUCT(N13) -> 20.0 % | O18: =PRODUCT(O13) -> 10 | P18: Ottelu | R18: 11.08. 2020 IPV - KPL 1-2 (4-2, 1-3, 1-1, 1-4) | AB18: 1. ottelu | AD18: 17 v 8 kk 16 pv
B19: Ylempi loppusarja | P19: Lyöty
B20: Alempi loppusarja | P20: Tuotu
B21: KAIKKI | E21: =SUM(E18:E20) -> 1 | F21: =SUM(F18:F20) -> 0 | G21: =SUM(G18:G20) -> 0 | H21: =SUM(H18:H20) -> 0 | I21: =SUM(I18:I20) -> 2 | K21: =PRODUCT((F21+G21)/E21) -> 0.00 | L21: =PRODUCT(H21/E21) -> 0.00 | M21: =PRODUCT(I21/E21) -> 2.00 | N21: =PRODUCT(I21/O21) -> 20.0 % | O21: =SUM(O18:O20) -> 10 | P21: Kunnari
B23: Seurat | D23: KPL = Kouvolan Pallonlyöjät (1931), kasvattajaseura
D24: LMV = Lahden Mailaveikot (1929)

Sheet MYP, MSS
B1: Santeri Soininen | E1: 26.11.2002 Kotka
B2: YKKÖSPESIS | E2: Runkosarja | L2: Runkosarja TOP-10 | Q2: Jatkosarjat | X2: SUOMENSARJA | AA2: Runkosarja | AH2: Runkosarja TOP-10 | AM2: Jatkosarjat
B3: Vuosi | C3: Sija | D3: Seura | E3: OTT | F3: KUN | G3: LÖI | H3: TOI | I3: KL | J3: KL-% | L3: LÖI | M3: TOI | N3: L+T | O3: KL | Q3: OTT | R3: KUN | S3: LÖI | T3: TOI | U3: KL | V3: KL-% | X3: Vuosi | Y3: Sija | Z3: Seura | AA3: OTT | AB3: KUN | AC3: LÖI | AD3: TOI | AE3: KL | AF3: KL-% | AH3: LÖI | AI3: TOI | AJ3: L+T | AK3: KL | AM3: OTT | AN3: KUN | AO3: LÖI | AP3: TOI | AQ3: KL | AR3: KL-%
X4: 2016 | Y4: 2. | Z4: KPL 2 | AA4: 1 | AB4: 0 | AC4: 0 | AD4: 1 | AE4: 1 | AF4: 25.0 % | AG4: 4
X6: 2018 | Y6: 5. | Z6: KPL 2 | AA6: 2 | AB6: 0 | AC6: 0 | AD6: 0 | AE6: 6 | AF6: 60.0 % | AG6: =PRODUCT(AE6/AF6) -> 10
X7: 2019 | Y7: 4. | Z7: KPL 2 | AA7: 6 | AB7: 0 | AC7: 0 | AD7: 16 | AE7: 32 | AF7: 84.2 % | AG7: 38
X8: 2020 | Y8: 3. | Z8: KPL 2 | AA8: 8 | AB8: 0 | AC8: 1 | AD8: 16 | AE8: 31 | AF8: 51.7 % | AG8: 60 | AI8: 3.
X9: 2021 | Y9: 1. | Z9: KPL 2 | AA9: 4 | AB9: 1 | AC9: 0 | AD9: 11 | AE9: 7 | AF9: 50.0 % | AG9: 14 | AM9: 1 | AN9: 0 | AO9: 0 | AP9: 1 | AQ9: 1 | AR9: 100.0 % | AS9: 1
B10: 2022 | C10: 5. | D10: KPL 2 | E10: 11 | F10: 0 | G10: 2 | H10: 0 | I10: 10 | J10: 34.5 % | K10: 29 | X10: 2022 | Y10: 6. | Z10: LMV | AA10: 2 | AB10: 1 | AC10: 2 | AD10: 4 | AE10: 10 | AF10: 66.7 % | AG10: 15
B11: YHTEENSÄ | E11: =SUM(E4:E10) -> 11 | F11: =SUM(F4:F10) -> 0 | G11: =SUM(G4:G10) -> 2 | H11: =SUM(H4:H10) -> 0 | I11: =SUM(I4:I10) -> 10 | J11: =PRODUCT(I11/K11) -> 34.5 % | K11: =SUM(K4:K10) -> 29 | Q11: =SUM(Q4:Q10) -> 0 | R11: =SUM(R4:R10) -> 0 | S11: =SUM(S4:S10) -> 0 | T11: =SUM(T4:T10) -> 0 | U11: =SUM(U4:U10) -> 0 | V11: 0.0 % | W11: =SUM(W4:W10) -> 0 | X11: YHTEENSÄ | AA11: =SUM(AA4:AA10) -> 23 | AB11: =SUM(AB4:AB10) -> 2 | AC11: =SUM(AC4:AC10) -> 3 | AD11: =SUM(AD4:AD10) -> 48 | AE11: =SUM(AE4:AE10) -> 87 | AF11: =PRODUCT(AE11/AG11) -> 61.7 % | AG11: =SUM(AG4:AG10) -> 141 | AM11: =SUM(AM4:AM10) -> 1 | AN11: =SUM(AN4:AN10) -> 0 | AO11: =SUM(AO4:AO10) -> 0 | AP11: =SUM(AP4:AP10) -> 1 | AQ11: =SUM(AQ4:AQ10) -> 1 | AR11: =PRODUCT(AQ11/AS11) -> 100.0 % | AS11: =SUM(AS4:AS10) -> 1
B13: KAIKKI OTTELUT | E13: OTT | F13: KUN | G13: LÖI | H13: TOI | I13: KL | J13: KL-% | L13: ka/L | M13: ka/T | N13: ka/l+t | O13: ka/kl | R13: Seurat | T13: KPL = Kouvolan Pallonlyöjät (1931), kasvattajaseura
B14: SUPERPESIS | E14: 1 | F14: 0 | G14: 0 | H14: 0 | I14: 2 | J14: 40.0 % | K14: =PRODUCT(I14/J14) -> 5 | L14: =PRODUCT((F14+G14)/E14) -> 0.00 | M14: =PRODUCT(H14/E14) -> 0.00 | N14: =PRODUCT((F14+G14+H14)/E14) -> 0.00 | O14: =PRODUCT(I14/E14) -> 2.00 | T14: LMV = Lahden Mailaveikot (1929)
B15: YKKÖSPESIS | E15: =PRODUCT(E11+Q11) -> 11 | F15: =PRODUCT(F11+R11) -> 0 | G15: =PRODUCT(G11+S11) -> 2 | H15: =PRODUCT(H11+T11) -> 0 | I15: =PRODUCT(I11+U11) -> 10 | J15: =PRODUCT(I15/K15) -> 34.5 % | K15: =PRODUCT(K11+W11) -> 29 | L15: =PRODUCT((F15+G15)/E15) -> 0.18 | M15: =PRODUCT(H15/E15) -> 0.00 | N15: =PRODUCT((F15+G15+H15)/E15) -> 0.18 | O15: =PRODUCT(I15/E15) -> 0.91
B16: SUOMENSARJA | E16: =PRODUCT(AA11+AM11) -> 24 | F16: =PRODUCT(AB11+AN11) -> 2 | G16: =PRODUCT(AC11+AO11) -> 3 | H16: =PRODUCT(AD11+AP11) -> 49 | I16: =PRODUCT(AE11+AQ11) -> 88 | J16: =PRODUCT(I16/K16) -> 62.0 % | K16: =PRODUCT(AG11+AS11) -> 142 | L16: =PRODUCT((F16+G16)/E16) -> 0.21 | M16: =PRODUCT(H16/E16) -> 2.04 | N16: =PRODUCT((F16+G16+H16)/E16) -> 2.25 | O16: =PRODUCT(I16/E16) -> 3.67
B17: YHTEENSÄ | E17: =SUM(E14:E16) -> 36 | F17: =SUM(F14:F16) -> 2 | G17: 5 | H17: 49 | I17: 100 | J17: =PRODUCT(I17/K17) -> 56.8 % | K17: =SUM(K14:K16) -> 176 | L17: =PRODUCT((F17+G17)/E17) -> 0.19 | M17: =PRODUCT(H17/E17) -> 1.36 | N17: =PRODUCT((F17+G17+H17)/E17) -> 1.56 | O17: =PRODUCT(I17/E17) -> 2.78
